[Event "Belarus-ch Men 2022"]
[Site "Minsk"]
[Date "2022.01.13"]
[Round "5.2"]
[White "Lutsko, Igor"]
[Black "Volianuk, Vitaly"]
[Result "0-1"]
[ECO "B06"]
[WhiteElo "2305"]
[BlackElo "2267"]
[Annotator "ChessBase"]
[PlyCount "100"]
[EventDate "2022.01.09"]
[EventType "tourn"]
[EventCountry "BLR"]
[SourceTitle "playchess.com"]
[Source "ChessBase"]
[SourceQuality "1"]
[TimeControl "40/5400+30:1800+30"]

1. d4 {[%emt 0:01:58]} g6 {[%emt 0:00:21]} 2. e4 {[%emt 0:00:53]} Bg7 {[%emt 0:00:09]} 3. Nf3 {[%emt 0:00:33]} d6 {[%emt 0:00:25]} 4. Bc4 {[%emt 0:00:58]} e6 {[%emt 0:03:58]} 5. Qe2 {[%emt 0:03:16]} a6 {[%emt 0:01:33]} 6. Bb3 {[%emt 0:04:04]} Ne7 {[%emt 0:04:53]} 7. c3 {[%emt 0:06:20]} b6 {[%emt 0:06:02]} 8. Bf4 {[%emt 0:08:47]} h6 {[%emt 0:03:11]} 9. Nbd2 {[%emt 0:04:17]} Bb7 {[%emt 0:04:17]} 10. h3 {[%emt 0:11:38]} Nd7 {[%emt 0:02:28]} 11. Bh2 {[%emt 0:06:16]} g5 {[%emt 0:14:01]} 12. O-O-O {[%emt 0:14:28]} Ng6 {[%emt 0:04:09]} 13. Ne1 {[%emt 0:06:41]} Qe7 {[%emt 0:02:05]} 14. Nd3 {[%emt 0:01:06]} O-O-O {[%emt 0:07:00]} 15. Rhe1 {[%emt 0:02:50]} h5 {[%emt 0:09:04]} 16. Qf1 {[%emt 0:03:08]} Bh6 {[%emt 0:03:29]} 17. Kb1 {[%emt 0:00:39]} Nf4 {[%emt 0:05:00]} 18. Nb4 {[%emt 0:01:20]} a5 {[%emt 0:01:25]} 19. Nc2 {[%emt 0:00:09]} Rdg8 {[%emt 0:01:36]} 20. g3 {[%emt 0:02:21]} Ng6 {[%emt 0:01:12]} 21. f3 {[%emt 0:02:11]} g4 {[%emt 0:05:41]} 22. fxg4 {[%emt 0:00:51]} hxg4 {[%emt 0:00:31]} 23. h4 {[%emt 0:00:13]} Nf6 {[%emt 0:01:23]} 24. Qd3 {[%emt 0:04:38]} Qd7 {[%emt 0:06:55]} 25. Ne3 {[%emt 0:01:48]} Bxe3 {[%emt 0:02:52]} 26. Qxe3 {[%emt 0:02:13]} d5 {[%emt 0:03:43]} 27. e5 {[%emt 0:02:08]} Nh5 {[%emt 0:00:39]} 28. Rf1 {[%emt 0:01:18]} Ba6 {[%emt 0:00:41]} 29. Bc2 {[%emt 0:03:27]} Bxf1 {[%emt 0:02:02]} 30. Rxf1 {[%emt 0:00:31]} Ne7 {[%emt 0:00:35]} 31. Rxf7 {[%emt 0:02:13]} Nf5 {[%emt 0:00:58]} 32. Rxf5 {[%emt 0:00:04]} exf5 {[%emt 0:00:07]} 33. e6 {[%emt 0:00:06]} Qe7 {[%emt 0:01:11]} 34. Bxf5 {[%emt 0:00:16]} Nf6 {[%emt 0:00:43]} 35. c4 {[%emt 0:02:54]} Rh5 {[%emt 0:00:53]} 36. Qd3 {[%emt 0:00:39]} Rd8 {[%emt 0:01:48]} 37. c5 {[%emt 0:00:25]} Kb7 {[%emt 0:00:51]} 38. Nb3 {[%emt 0:00:15]} Qe8 {[%emt 0:00:36]} 39. Bg6 {[%emt 0:01:02]} Qxe6 {[%emt 0:00:37]} 40. Qb5 {[%emt 0:00:00]} Qe1+ {[%emt 0:00:00]} 41. Nc1 {[%emt 0:11:19]} Qb4 {[%emt 0:05:31]} 42. c6+ {[%emt 0:04:32]} Ka7 {[%emt 0:00:20]} 43. Qf1 {[%emt 0:00:19]} Rd6 {[%emt 0:04:15]} 44. Nd3 {[%emt 0:03:18]} Qb5 {[%emt 0:05:04]} 45. Qd1 {[%emt 0:02:37]} Ne4 {[%emt 0:01:03]} 46. Bxe4 {[%emt 0:01:26]} dxe4 {[%emt 0:00:13]} 47. Nf4 {[%emt 0:00:19]} Rf5 {[%emt 0:02:00]} 48. Bg1 {[%emt 0:00:49]} Rxf4 {[%emt 0:03:40]} 49. gxf4 {[%emt 0:00:05]} Rxc6 {[%emt 0:00:31]} 50. a4 {[%emt 0:01:18]} Qd3+ {[%emt 0:01:43]} 0-1

[Event "Belarus-ch Men 2022"]
[Site "Minsk"]
[Date "2022.01.13"]
[Round "5.3"]
[White "Siniauski, Artsiom"]
[Black "Stribuk, Artiom"]
[Result "1/2-1/2"]
[ECO "B30"]
[WhiteElo "2301"]
[BlackElo "2210"]
[Annotator "ChessBase"]
[PlyCount "94"]
[EventDate "2022.01.09"]
[EventType "tourn"]
[EventCountry "BLR"]
[SourceTitle "playchess.com"]
[Source "ChessBase"]
[SourceQuality "1"]
[TimeControl "40/5400+30:1800+30"]

1. e4 {[%emt 0:00:03]} c5 {[%emt 0:00:05]} 2. Nf3 {[%emt 0:00:10]} Nc6 {[%emt 0:00:06]} 3. Bb5 {[%emt 0:00:18]} e6 {[%emt 0:00:07]} 4. O-O {[%emt 0:00:26]} Nge7 {[%emt 0:00:08]} 5. Re1 {[%emt 0:00:16]} a6 {[%emt 0:00:26]} 6. Bf1 {[%emt 0:00:17]} b6 {[%emt 0:00:41]} 7. d4 {[%emt 0:06:21]} cxd4 {[%emt 0:00:43]} 8. Nxd4 {[%emt 0:00:16]} Qc7 {[%emt 0:00:46]} 9. Be3 {[%emt 0:11:59]} Ng6 {[%emt 0:16:32]} 10. c4 {[%emt 0:04:44]} Bd6 {[%emt 0:00:22]} 11. g3 {[%emt 0:01:03]} Nxd4 {[%emt 0:12:56]} 12. Bxd4 {[%emt 0:15:30]} Be5 {[%emt 0:01:18]} 13. Nc3 {[%emt 0:01:44]} d6 {[%emt 0:17:19]} 14. Rc1 {[%emt 0:02:52]} O-O {[%emt 0:01:22]} 15. Be3 {[%emt 0:03:54]} Bb7 {[%emt 0:02:56]} 16. Bg2 {[%emt 0:03:27]} Qxc4 {[%emt 0:10:21]} 17. Na4 {[%emt 0:02:19]} Qb5 {[%emt 0:00:51]} 18. f4 {[%emt 0:01:14]} Bf6 {[%emt 0:05:33]} 19. Nxb6 {[%emt 0:03:07]} Rab8 {[%emt 0:01:33]} 20. a4 {[%emt 0:01:34]} Qb4 {[%emt 0:07:38]} 21. Nd7 {[%emt 0:01:36]} Bxe4 {[%emt 0:04:05]} 22. Bxe4 {[%emt 0:01:00]} Qxe4 {[%emt 0:00:41]} 23. Nxb8 {[%emt 0:00:23]} Rxb8 {[%emt 0:02:39]} 24. Ba7 {[%emt 0:00:43]} Qb7 {[%emt 0:00:12]} 25. Bxb8 {[%emt 0:00:08]} Qxb8 {[%emt 0:00:03]} 26. b3 {[%emt 0:03:27]} Ne7 {[%emt 0:02:07]} 27. Qd3 {[%emt 0:04:30]} Qb6+ {[%emt 0:01:19]} 28. Kg2 {[%emt 0:00:14]} g6 {[%emt 0:00:17]} 29. h4 {[%emt 0:17:11]} h5 {[%emt 0:01:31]} 30. Kh3 {[%emt 0:00:46]} Kg7 {[%emt 0:00:33]} 31. Rc2 {[%emt 0:00:37]} Nd5 {[%emt 0:01:29]} 32. Qf3 {[%emt 0:00:44]} a5 {[%emt 0:02:33]} 33. Rec1 {[%emt 0:00:42]} Qb4 {[%emt 0:01:23]} 34. Rd1 {[%emt 0:02:32]} Ne7 {[%emt 0:01:37]} 35. Rc7 {[%emt 0:00:34]} d5 {[%emt 0:00:25]} 36. Qd3 {[%emt 0:00:35]} Qb6 {[%emt 0:02:32]} 37. Rdc1 {[%emt 0:00:13]} Nf5 {[%emt 0:00:35]} 38. R7c5 {[%emt 0:03:41]} Qb4 {[%emt 0:01:28]} 39. Rb5 {[%emt 0:00:46]} Qa3 {[%emt 0:00:09]} 40. Rf1 {[%emt 0:00:00]} Qb2 {[%emt 0:00:00]} 41. Rc5 {[%emt 0:06:43]} d4 {[%emt 0:12:51]} 42. Rb1 {[%emt 0:05:39]} Qa2 {[%emt 0:05:48]} 43. Qc2 {[%emt 0:00:58]} Qa3 {[%emt 0:00:05]} 44. Rxa5 {[%emt 0:02:08]} Ne3 {[%emt 0:00:05]} 45. Qd2 {[%emt 0:00:10]} Qd6 {[%emt 0:01:37]} 46. Re1 {[%emt 0:06:57]} Qc6 {[%emt 0:10:16]} 47. Rg5 {[%emt 0:01:09]} Qf3 {[%emt 0:01:12]} 1/2-1/2

[Event "Belarus-ch Men 2022"]
[Site "Minsk"]
[Date "2022.01.15"]
[Round "7.1"]
[White "Lutsko, Igor"]
[Black "Tsaruk, Maksim"]
[Result "0-1"]
[ECO "A28"]
[WhiteElo "2305"]
[BlackElo "2343"]
[Annotator "ChessBase"]
[PlyCount "72"]
[EventDate "2022.01.09"]
[EventType "tourn"]
[EventCountry "BLR"]
[SourceTitle "playchess.com"]
[Source "ChessBase"]
[SourceQuality "1"]
[TimeControl "40/5400+30:1800+30"]

1. c4 {[%emt 0:00:02]} Nf6 {[%emt 0:00:31]} 2. Nc3 {[%emt 0:00:20]} e5 {[%emt 0:00:57]} 3. Nf3 {[%emt 0:00:40]} Nc6 {[%emt 0:00:17]} 4. e3 {[%emt 0:00:28]} d5 {[%emt 0:05:25]} 5. cxd5 {[%emt 0:00:28]} Nxd5 {[%emt 0:00:05]} 6. Qc2 {[%emt 0:01:32]} Nxc3 {[%emt 0:07:31]} 7. bxc3 {[%emt 0:01:20]} Bd6 {[%emt 0:00:20]} 8. h4 {[%emt 0:08:00]} h6 {[%emt 0:06:41]} 9. Bd3 {[%emt 0:03:43]} Qd7 {[%emt 0:18:21]} 10. h5 {[%emt 0:14:26]} O-O {[%emt 0:09:23]} 11. Nh4 {[%emt 0:08:16]} Ne7 {[%emt 0:00:56]} 12. e4 {[%emt 0:05:03]} c5 {[%emt 0:08:16]} 13. a4 {[%emt 0:15:57]} b6 {[%emt 0:09:15]} 14. Bc4 {[%emt 0:01:31]} Qg4 {[%emt 0:02:22]} 15. d3 {[%emt 0:05:02]} Qxh5 {[%emt 0:13:29]} 16. f3 {[%emt 0:00:10]} Ng6 {[%emt 0:00:05]} 17. g4 {[%emt 0:02:04]} Qxh4+ {[%emt 0:00:05]} 18. Rxh4 {[%emt 0:00:07]} Nxh4 {[%emt 0:00:01]} 19. Kf2 {[%emt 0:09:34]} Be6 {[%emt 0:02:40]} 20. Qb3 {[%emt 0:08:50]} Bxc4 {[%emt 0:06:47]} 21. Qxc4 {[%emt 0:00:06]} g5 {[%emt 0:00:04]} 22. a5 {[%emt 0:00:20]} Rae8 {[%emt 0:04:08]} 23. axb6 {[%emt 0:02:51]} axb6 {[%emt 0:00:03]} 24. Ra6 {[%emt 0:02:38]} Bc7 {[%emt 0:02:59]} 25. d4 {[%emt 0:09:32]} exd4 {[%emt 0:00:26]} 26. cxd4 {[%emt 0:00:00]} cxd4 {[%emt 0:00:29]} 27. Ba3 {[%emt 0:00:00]} Rc8 {[%emt 0:00:11]} 28. Qb3 {[%emt 0:00:00]} Rfd8 {[%emt 0:01:00]} 29. Be7 {[%emt 0:00:15]} Rd7 {[%emt 0:01:04]} 30. Bf6 {[%emt 0:00:06]} Bf4 {[%emt 0:01:02]} 31. Qa4 {[%emt 0:00:45]} b5 {[%emt 0:00:26]} 32. Ra8 {[%emt 0:01:50]} bxa4 {[%emt 0:00:16]} 33. Rxc8+ {[%emt 0:00:01]} Kh7 {[%emt 0:00:04]} 34. Rh8+ {[%emt 0:00:52]} Kg6 {[%emt 0:00:04]} 35. e5 {[%emt 0:00:29]} Bxe5 {[%emt 0:00:05]} 36. Bxe5 {[%emt 0:00:22]} f6 {[%emt 0:00:03]} 0-1

[Event "Belarus-ch Men 2022"]
[Site "Minsk"]
[Date "2022.01.16"]
[Round "8.3"]
[White "Stribuk, Artiom"]
[Black "Runets, Ivan"]
[Result "1-0"]
[ECO "E05"]
[WhiteElo "2210"]
[BlackElo "2240"]
[Annotator "ChessBase"]
[PlyCount "66"]
[EventDate "2022.01.09"]
[EventType "tourn"]
[EventCountry "BLR"]
[SourceTitle "playchess.com"]
[Source "ChessBase"]
[SourceQuality "1"]
[TimeControl "40/5400+30:1800+30"]

1. d4 {[%emt 0:00:02]} Nf6 {[%emt 0:00:26]} 2. c4 {[%emt 0:00:26]} e6 {[%emt 0:00:05]} 3. g3 {[%emt 0:00:10]} d5 {[%emt 0:00:05]} 4. Nf3 {[%emt 0:00:08]} Be7 {[%emt 0:00:03]} 5. Bg2 {[%emt 0:00:08]} O-O {[%emt 0:00:05]} 6. O-O {[%emt 0:00:12]} dxc4 {[%emt 0:00:09]} 7. Qc2 {[%emt 0:00:14]} a6 {[%emt 0:00:07]} 8. a4 {[%emt 0:00:06]} Bd7 {[%emt 0:00:56]} 9. Rd1 {[%emt 0:00:08]} Bc6 {[%emt 0:08:49]} 10. Bg5 {[%emt 0:00:47]} a5 {[%emt 0:05:12]} 11. Qxc4 {[%emt 0:13:38]} Na6 {[%emt 0:11:18]} 12. Nc3 {[%emt 0:00:19]} Nb4 {[%emt 0:00:59]} 13. Rac1 {[%emt 0:02:37]} h6 {[%emt 0:06:49]} 14. Bxf6 {[%emt 0:03:56]} Bxf6 {[%emt 0:02:05]} 15. e4 {[%emt 0:00:15]} b6 {[%emt 0:19:44]} 16. d5 {[%emt 0:14:40]} exd5 {[%emt 0:00:05]} 17. exd5 {[%emt 0:00:10]} Bb7 {[%emt 0:01:13]} 18. Nd4 {[%emt 0:00:45]} Qd7 {[%emt 0:00:52]} 19. Nc6 {[%emt 0:21:32]} Ba6 {[%emt 0:04:29]} 20. Nb5 {[%emt 0:00:49]} Bxb2 {[%emt 0:11:08]} 21. Rb1 {[%emt 0:01:37]} Bf6 {[%emt 0:01:12]} 22. d6 {[%emt 0:01:25]} Rac8 {[%emt 0:03:38]} 23. Nxb4 {[%emt 0:13:50]} axb4 {[%emt 0:04:26]} 24. Qxb4 {[%emt 0:00:16]} c5 {[%emt 0:07:14]} 25. Qd2 {[%emt 0:08:40]} c4 {[%emt 0:03:33]} 26. Nc3 {[%emt 0:01:03]} Rfd8 {[%emt 0:02:28]} 27. Rxb6 {[%emt 0:01:40]} Qa7 {[%emt 0:01:48]} 28. a5 {[%emt 0:02:20]} Rc5 {[%emt 0:01:51]} 29. Ne4 {[%emt 0:01:36]} Rf5 {[%emt 0:02:25]} 30. Nxf6+ {[%emt 0:04:14]} Rxf6 {[%emt 0:00:02]} 31. Qd4 {[%emt 0:00:28]} Bc8 {[%emt 0:01:55]} 32. Qxc4 {[%emt 0:01:28]} Qxa5 {[%emt 0:00:07]} 33. Rb8 {[%emt 0:03:44]} Bg4 {[%emt 0:00:56]} 1-0

[Event "Belarus-ch Men 2022"]
[Site "Minsk"]
[Date "2022.01.16"]
[Round "8.6"]
[White "Lutsko, Igor"]
[Black "Siniauski, Artsiom"]
[Result "1-0"]
[ECO "E48"]
[WhiteElo "2305"]
[BlackElo "2301"]
[Annotator "ChessBase"]
[PlyCount "77"]
[EventDate "2022.01.09"]
[EventType "tourn"]
[EventCountry "BLR"]
[SourceTitle "playchess.com"]
[Source "ChessBase"]
[SourceQuality "1"]
[TimeControl "40/5400+30:1800+30"]

1. d4 {[%emt 0:00:07]} Nf6 {[%emt 0:00:11]} 2. c4 {[%emt 0:00:10]} e6 {[%emt 0:00:06]} 3. Nc3 {[%emt 0:00:09]} Bb4 {[%emt 0:00:14]} 4. e3 {[%emt 0:00:05]} c5 {[%emt 0:00:18]} 5. Bd3 {[%emt 0:00:38]} Nc6 {[%emt 0:00:22]} 6. Nge2 {[%emt 0:00:35]} cxd4 {[%emt 0:00:18]} 7. exd4 {[%emt 0:00:07]} d5 {[%emt 0:00:14]} 8. cxd5 {[%emt 0:00:09]} Nxd5 {[%emt 0:00:38]} 9. O-O {[%emt 0:00:09]} O-O {[%emt 0:03:37]} 10. Qc2 {[%emt 0:02:51]} h6 {[%emt 0:02:30]} 11. Rd1 {[%emt 0:00:12]} Be7 {[%emt 0:06:07]} 12. Be4 {[%emt 0:03:04]} Bf6 {[%emt 0:05:23]} 13. Qd3 {[%emt 0:01:35]} Nce7 {[%emt 0:18:53]} 14. Qg3 {[%emt 0:13:41]} Kh8 {[%emt 0:05:00]} 15. Qf3 {[%emt 0:21:47]} Bd7 {[%emt 0:05:12]} 16. Qh5 {[%emt 0:04:42]} Kg8 {[%emt 0:21:18]} 17. Rd3 {[%emt 0:00:52]} Nxc3 {[%emt 0:00:45]} 18. Nxc3 {[%emt 0:05:25]} Nf5 {[%emt 0:06:38]} 19. Bxb7 {[%emt 0:43:42]} Rb8 {[%emt 0:06:55]} 20. Be4 {[%emt 0:00:00]} Bb5 {[%emt 0:00:18]} 21. Rd1 {[%emt 0:00:00]} g6 {[%emt 0:05:05]} 22. Qh3 {[%emt 0:00:00]} Qb6 {[%emt 0:04:46]} 23. Bxf5 {[%emt 0:00:00]} gxf5 {[%emt 0:01:45]} 24. Bxh6 {[%emt 0:00:00]} Rfd8 {[%emt 0:00:04]} 25. Qg3+ {[%emt 0:00:00]} Kh7 {[%emt 0:00:06]} 26. Bf4 {[%emt 0:00:00]} Rbc8 {[%emt 0:00:30]} 27. Be5 {[%emt 0:00:00]} Bxe5 {[%emt 0:00:33]} 28. dxe5 {[%emt 0:00:00]} Bc6 {[%emt 0:00:09]} 29. Qh4+ {[%emt 0:00:00]} Kg8 {[%emt 0:00:10]} 30. Qg5+ {[%emt 0:00:00]} Kf8 {[%emt 0:01:01]} 31. Rac1 {[%emt 0:00:00]} Rxd1+ {[%emt 0:01:03]} 32. Nxd1 {[%emt 0:00:00]} Rd8 {[%emt 0:00:24]} 33. h4 {[%emt 0:00:00]} Bb7 {[%emt 0:01:00]} 34. Ne3 {[%emt 0:00:00]} Rd4 {[%emt 0:01:33]} 35. h5 {[%emt 0:01:09]} Qxb2 {[%emt 0:00:11]} 36. Rc7 {[%emt 0:00:33]} Qa1+ {[%emt 0:00:59]} 37. Nf1 {[%emt 0:01:19]} Rg4 {[%emt 0:00:43]} 38. Qd8+ {[%emt 0:00:30]} Kg7 {[%emt 0:00:05]} 39. Qf6+ {[%emt 0:00:15]} 1-0

[Event "Belarus-ch Men 2022"]
[Site "Minsk"]
[Date "2022.01.19"]
[Round "11.2"]
[White "Lazavik, Denis"]
[Black "Siniauski, Artsiom"]
[Result "1/2-1/2"]
[ECO "E32"]
[WhiteElo "2465"]
[BlackElo "2301"]
[Annotator "RC"]
[PlyCount "65"]
[EventDate "2022.01.09"]
[EventType "tourn"]
[EventCountry "BLR"]
[SourceTitle "playchess.com"]
[Source "ChessBase"]
[SourceQuality "1"]
[TimeControl "40/5400+30:1800+30"]

1. d4 {[%emt 0:00:08]} Nf6 {[%emt 0:00:13]} 2. c4 {[%emt 0:00:20]} e6 {[%emt 0:00:13]} 3. Nc3 {[%emt 0:00:40]} Bb4 {[%emt 0:00:28]} 4. Qc2 {[%emt 0:00:24]} O-O {[%emt 0:01:41]} 5. a3 {[%emt 0:00:27]} Bxc3+ {[%emt 0:00:33]} 6. Qxc3 {[%emt 0:00:20]} b6 {[%emt 0:01:16]} 7. Bg5 {[%emt 0:00:26]} Bb7 {[%emt 0:02:40]} 8. f3 {[%emt 0:01:15]} h6 {[%emt 0:09:13]} 9. Bh4 {[%emt 0:02:15]} c5 {[%emt 0:00:56]} 10. dxc5 {[%emt 0:13:37]} bxc5 {[%emt 0:00:32]} 11. e3 {[%emt 0:07:39]} Nc6 {[%emt 0:09:15]} 12. Bd3 {[%emt 0:05:38]} Qa5 {[%emt 0:06:30]} 13. Ne2 {[%emt 0:07:43]} Qxc3+ {[%emt 0:08:46]} 14. Nxc3 {[%emt 0:00:16]} Ba6 {[%emt 0:00:07]} 15. Bxf6 {[%emt 0:13:37]} gxf6 {[%emt 0:00:07]} 16. Ne4 {[%emt 0:00:27]} Ne5 {[%emt 0:00:33]} 17. Be2 {[%emt 0:00:48]} Bxc4 {[%emt 0:26:34]} 18. Nxf6+ {[%emt 0:01:31]} Kg7 {[%emt 0:00:09]} 19. Nxd7 {[%emt 0:00:55]} Nxd7 {[%emt 0:00:08]} 20. Bxc4 {[%emt 0:00:07]} Ne5 {[%emt 0:00:08]} 21. Be2 {[%emt 0:05:13]} Rab8 {[%emt 0:02:14]} 22. f4 {[%emt 0:03:44]} Nc6 {[%emt 0:06:21]} 23. O-O-O {[%emt 0:01:02]} Rb3 {[%emt 0:00:23]} 24. Rd3 {[%emt 0:12:22]} Rfb8 {[%emt 0:00:11]} 25. Rxb3 {[%emt 0:00:43]} Rxb3 {[%emt 0:00:03]} 26. Bf3 {[%emt 0:01:04]} Na5 {[%emt 0:00:23]} 27. e4 {[%emt 0:08:34]} Nc4 {[%emt 0:09:36]} 28. Kc2 {[%emt 0:00:31]} Rb6 {[%emt 0:00:19]} 29. Rb1 {[%emt 0:01:47]} e5 {[%emt 0:00:16]} 30. f5 {[%emt 0:02:00]} Kf6 {[%emt 0:00:33]} 31. h4 {[%emt 0:04:00]} Ke7 {[%emt 0:00:03]} 32. g4 {[%emt 0:01:24]} f6 {[%emt 0:00:03]} 33. Be2 {[%emt 0:06:03]} 1/2-1/2